Cogmind - Beta 13 @@@ ROGUE MODE // 2024.03.31 @ 19:17:04 Player: Apotheosis Result: Destroyed by 1E-J9U(z) with Makeshift Axe Performance ------------- Evolutions (1) 500 Regions Visited (4) 800 Robots Destroyed (12) 60 Value Destroyed (259) 259 Prototype IDs (2) 40 Alien Tech Used (0) 0 Bonus (567) 567 TOTAL SCORE: 2226 Bonus ------- Met Imprinter 300 Was Imprinted 300 Friendly Fire -33 Cogmind --------- Core Integrity 0/400 Matter 197/300 Energy 100/100 System Corruption 0% Temperature Cool (0) Movement Core (50) Location -7/Zion Parts ------- > --- POWER (1) -------- (None) > --- PROPULSION (2) --- (None) > --- UTILITY (3) ------ Visual Processing Unit 0b10 Decoder Chip [Looter] > --- WEAPON (3) ------- (None) > --- INVENTORY (5) ---- Tractor Beam Pulse Rifle Mini Grenade Launcher Improved Datajack RU-N14's Throwing Claymores (2) Peak State ------------ > --- POWER ------------ Light Ion Engine > --- PROPULSION ------- Improved Flight Unit Improved Flight Unit > --- UTILITY ---------- Visual Processing Unit Sensor Array 0b10 Decoder Chip [Looter] > --- WEAPON ----------- Mini Grenade Launcher Mini Grenade Launcher CR-A16's Pointy Stick > --- INVENTORY -------- Light Nuclear Core Tractor Beam Heavy Missile Launcher Improved Datajack RU-N14's Throwing Claymores [Rating: 24] Favorites ----------- Power Light Ion Engine Engine Light Ion Engine Power Core Light Nuclear Core Propulsion Improved Flight Unit Leg Aluminum Leg Hover Unit Airjet Flight Unit Improved Flight Unit Utility Visual Processing Unit Device Sensor Array Processor Visual Processing Unit Protection Hardened Light Armor Plating Weapon Mini Grenade Launcher Energy Gun Medium Laser Launcher Mini Grenade Launcher Special Weapon RU-N14's Throwing Claymores Impact Weapon Maul Piercing Weapon CR-A16's Pointy Stick Build | -11 -10 -9 -9 -7 ------- Run | Yrd Mat Mat Min Zio Slots Evolved 2 | . . 2 . . Power . | . . . . . Propulsion . | . . . . . Utility 1 | . . 1 . . Weapon 1 | . . 1 . . Parts Attached 37 | 5 17 6 . 9 Power 6 | 1 . 2 . 3 Engine 3 | 1 . 1 . 1 Core 3 | . . 1 . 2 Reactor . | . . . . . Propulsion 8 | 2 4 . . 2 Treads . | . . . . . Leg 4 | 2 2 . . . Wheel . | . . . . . Hover 1 | . . . . 1 Flight 3 | . 2 . . 1 Utility 12 | . 8 3 . 1 Device 8 | . 6 2 . . Storage . | . . . . . Processor 3 | . 2 . . 1 Hackware . | . . . . . Protection 1 | . . 1 . . Artifact . | . . . . . Weapon 11 | 2 5 1 . 3 Energy Gun 3 | 2 1 . . . Energy Cannon . | . . . . . Ballistic Gun . | . . . . . Ballistic Cannon . | . . . . . Launcher 3 | . 2 . . 1 Special Weapon 1 | . . . . 1 Impact Weapon 3 | . 2 1 . . Slashing Weapon . | . . . . . Piercing Weapon 1 | . . . . 1 Special Melee Weapon . | . . . . . Unidentified Prototypes 2 | . 1 . . 1 Parts Lost 6 | . . . . 6 Power 2 | . . . . 2 Propulsion 2 | . . . . 2 Utility 1 | . . . . 1 Weapon 1 | . . . . 1 Highest Loss Streak 6 | . . . . 6 To Critical Strikes . | . . . . . Average Slot Usage (%) 93 | . 84 100 100 94 Engine 10 | . 14 11 11 10 Leg 3 | . 20 . . . Flight 18 | . 7 22 22 20 Device 11 | . 7 22 22 11 Processor 17 | . 5 11 11 20 Energy Gun 3 | . 23 . . . Launcher 17 | . . 22 22 20 Impact Weapon 1 | . 3 11 11 . Piercing Weapon 7 | . . . . 9 Naked Turns . | . . . . . Heaviest Build 12 | 7 9 12 10 10 Greatest Support 20 | 20 20 10 10 10 Greatest Overweight (x) 2 | . . 1 . 2 Average Overweight (x) . | . . . . . Largest Inventory Capacity 5 | 5 5 5 5 5 Average Capacity 5 | 5 5 5 5 5 Most Carried 5 | 2 5 5 5 5 Average Carried 4 | 1 3 3 4 4 Final Capacity 5 | 5 5 5 5 5 Final Carried 5 | 2 5 4 5 5 Class Distribution -------------------- 100% | Mutant Dominant Class ---------------- Mutant | -10/Materials Mutant | -9/Materials Mutant | -9/Mines Mutant | -7/Zion Resources | -11 -10 -9 -9 -7 ----------- Run | Yrd Mat Mat Min Zio Matter Collected 553 | 250 146 58 31 68 Remotely 135 | . . 58 31 46 Salvage Created 207 | 40 106 58 3 . Parts 29 | 2 10 10 7 . Haulers Intercepted . | . . . . . Recyclers Shooed . | . . . . . Parts Field Recycled . | . . . . . Retrieved Matter . | . . . . . Parts Self-Destructed 2 | . . . . 2 Prevented . | . . . . . Kills | -11 -10 -9 -9 -7 ------- Run | Yrd Mat Mat Min Zio Combat Hostiles Destroyed 9 | 1 2 3 3 . Guns 2 | 1 1 . . . AOE 6 | . . 3 3 . Classes Destroyed 5 | 1 1 3 . . Builder 1 | . 1 . . . Mechanic 1 | . . 1 . . Watcher 1 | . . 1 . . Swarmer 6 | . . 3 3 . Grunt 3 | 1 2 . . . Best Kill Streak 5 | 1 1 5 3 . Combat Bots Only 3 | 1 1 3 3 . Max Kills in Single Turn 4 | 1 1 4 2 . Gunslinging . | . . . . . Exploded 3 | . . 3 2 . Melee . | . . . . . Uniques/NPCs Destroyed . | . . . . . Combat | -11 -10 -9 -9 -7 -------- Run | Yrd Mat Mat Min Zio Hostile Shots Fired 83 | 4 24 6 4 45 Missed 30 | . 10 4 1 15 Damage Taken 966 | 45 169 53 50 649 Core 497 | 23 52 . 12 410 Absorbed by Shields . | . . . . . Core Remaining (%) 80 | 90 70 . . . Volleys Fired 22 | 3 13 3 2 1 Largest 2 | 2 2 2 2 2 Hottest 100 | 100 100 60 60 60 Shots Fired 44 | 6 26 6 4 2 Gun 32 | 6 26 . . . Cannon . | . . . . . Launcher 12 | . . 6 4 2 Special . | . . . . . Kinetic . | . . . . . Thermal 32 | 6 26 . . . Explosive 12 | . . 6 4 2 Electromagnetic . | . . . . . Robot Hit Streak 3 | 1 3 1 . . Robot Miss Streak 2 | 2 2 1 2 . Penetration Max . | . . . . . Secondary Targets . | . . . . . Shots Hit Robots 18 | 2 14 2 . . Core Hits 16 | 2 5 4 5 . Critical Kills . | . . . . . Critical Parts Destroyed . | . . . . . Critical Strikes 2 | . 2 . . . Burn 2 | . 2 . . . Melee Attacks 2 | . . 2 . . Impact 2 | . . 2 . . Slashing . | . . . . . Piercing . | . . . . . Sneak Attacks . | . . . . . Combat Hostiles . | . . . . . Follow-up Attacks . | . . . . . Damage Inflicted 679 | 26 187 262 140 64 Guns 212 | 26 186 . . . Cannons . | . . . . . Explosions 416 | . . 212 140 64 Melee 50 | . . 50 . . Ramming 1 | . 1 . . . Kinetic . | . . . . . Thermal 212 | 26 186 . . . Explosive 416 | . . 212 140 64 Electromagnetic . | . . . . . Impact 50 | . . 50 . . Slashing . | . . . . . Piercing . | . . . . . Highest Corruption . | . . . . . Average Corruption . | . . . . . Corruption Purged . | . . . . . Corruption Blocked . | . . . . . Overload Shots . | . . . . . Overflow Damage 25 | . . 25 . . Projectiles . | . . . . . Explosions 5 | . . 5 . . Melee 20 | . . 20 . . Knockbacks 1 | . . 1 . . Impact 1 | . . 1 . . Kinetic . | . . . . . Secondary . | . . . . . Self-Inflicted Damage 59 | . . 29 30 . Shots 2 | . . 1 1 . Rammed . | . . . . . Targets Rammed 1 | . 1 . . . Kicked 1 | . 1 . . . Crushed . | . . . . . Highest Temperature 324 | 135 324 10 3 6 Average Temperature 128 | 71 162 5 2 6 Received Heat Transfer 237 | 24 96 9 . 108 Effects 1 | . 1 . . . Short Circuit 1 | . 1 . . . Siege Activations . | . . . . . Robots Corrupted . | . . . . . Combat Hostiles . | . . . . . Parts Fried 1 | . . 1 . . Impact Corruptions 2 | . . 2 . . Robots Melted 1 | . 1 . . . Combat Hostiles 1 | . 1 . . . Parts Melted 1 | . 1 . . . Heat Transferred 777 | 74 703 . . . Parts Sabotaged . | . . . . . Parts Stolen . | . . . . . Parts Stripped . | . . . . . Power Chain Reactions . | . . . . . Alert | -11 -10 -9 -9 -7 ------- Run | Yrd Mat Mat Min Zio Peak Influence 239 | 20 68 199 239 . Initial 77 | . 13 28 77 . Average 46 | 14 50 97 222 . Maximum Alert Level 1 | . . . 1 . Low Security (%) 96 | 100 100 100 17 . Level 1 3 | . . . 82 . Level 2 . | . . . . . Level 3 . | . . . . . Level 4 . | . . . . . Level 5 . | . . . . . High Security . | . . . . . Max Security . | . . . . . Squads Dispatched . | . . . . . Investigation . | . . . . . Extermination . | . . . . . Reinforcement . | . . . . . Assault . | . . . . . Garrison . | . . . . . Intercept . | . . . . . Searches Triggered . | . . . . . Construction Impeded . | . . . . . Haulers Reinforced . | . . . . . Active Scanning Responses . | . . . . . Cargo Convoy Interrupts . | . . . . . Stealth | -11 -10 -9 -9 -7 --------- Run | Yrd Mat Mat Min Zio Distress Signals 3 | . 1 2 . . Communications Jammed . | . . . . . Distress Signals . | . . . . . Times Spotted 42 | 1 2 7 3 29 Peak Tracking Total 23 | 1 2 5 3 23 Tactical Retreats 2 | . . . . 2 Traps | -11 -10 -9 -9 -7 ------- Run | Yrd Mat Mat Min Zio Traps Triggered . | . . . . . Indirectly . | . . . . . Trap Hack Attempts . | . . . . . Triggered . | . . . . . Disarmed . | . . . . . Reprogrammed . | . . . . . Reused . | . . . . . Traps Extracted . | . . . . . Installed . | . . . . . Triggered . | . . . . . Machines | -11 -10 -9 -9 -7 ---------- Run | Yrd Mat Mat Min Zio Machines Disabled 6 | . . 1 5 . Max in Single Turn 5 | . . 1 5 . Machines Repaired . | . . . . . Machines Dismantled . | . . . . . Machines Sabotaged . | . . . . . Overloaded Fab Kills . | . . . . . Hacking | -11 -10 -9 -9 -7 --------- Run | Yrd Mat Mat Min Zio Machines Accessed 4 | . 1 2 1 . Terminals 3 | . 1 1 1 . Fabricators . | . . . . . Repair Stations . | . . . . . Recycling Units 1 | . . 1 . . Scanalyzers . | . . . . . Garrison Access . | . . . . . Total Hacks 8 | . 1 5 2 . Successful 6 | . . 4 2 . Failed 2 | . 1 1 . . Catastrophic . | . . . . . Database Lockouts . | . . . . . Manual . | . . . . . Terminals 4 | . 1 1 2 . Fabricators . | . . . . . Repair Stations . | . . . . . Recycling Units 4 | . . 4 . . Scanalyzers . | . . . . . Garrison Access . | . . . . . Terminal Hacks 3 | . . 1 2 . Record 3 | . . 1 2 . Fabricator Hacks . | . . . . . Repair Station Hacks . | . . . . . Recycling Unit Hacks 3 | . . 3 . . Process 2 | . . 2 . . Report Inventory 1 | . . 1 . . Scanalyzer . | . . . . . Garrison Access Hacks . | . . . . . Unauthorized Hacks . | . . . . . Terminals . | . . . . . Fabricators . | . . . . . Repair Stations . | . . . . . Recycling Units . | . . . . . Scanalyzers . | . . . . . Garrison Access . | . . . . . Data Cores Recovered . | . . . . . Used . | . . . . . Hacking Detections 2 | . . 1 1 . Full Trace Events . | . . . . . Feedback Events . | . . . . . Feedback Blocked . | . . . . . Robot Schematics Acquired . | . . . . . Robots Built . | . . . . . Authchips . | . . . . . Time . | . . . . . Total Robot Build Rating . | . . . . . Part Schematics Acquired . | . . . . . Parts Built . | . . . . . Authchips . | . . . . . Time . | . . . . . Total Part Build Rating . | . . . . . Parts Repaired . | . . . . . Time . | . . . . . Parts Recycled . | . . . . . Recycled Matter 16 | . . 16 . . Retrieved Matter . | . . . . . Retrieved Components . | . . . . . Parts Scanalyzed . | . . . . . Part Schematics Acquired . | . . . . . Parts Damaged . | . . . . . Bothacking | -11 -10 -9 -9 -7 ------------ Run | Yrd Mat Mat Min Zio Used RIF Installer . | . . . . . Robots Hacked . | . . . . . Non-combat . | . . . . . Combat . | . . . . . Robot Hacks Applied . | . . . . . Relay Couplers Released . | . . . . . Fabnet Peak Effective % . | . . . . . Robots Rewired . | . . . . . Allies Hacked . | . . . . . Hacks Repelled . | . . . . . Allies | -11 -10 -9 -9 -7 -------- Run | Yrd Mat Mat Min Zio Total Allies 4 | . . . . 4 Largest Group 4 | . . . . 4 Highest-Rated Group 152 | . . . . 152 Highest-Rated Ally 40 | . . . . 40 Total Orders . | . . . . . Ally Attacks . | . . . . . Total Damage . | . . . . . Kills . | . . . . . Allies Corrupted . | . . . . . Allies Melted . | . . . . . Intel | -11 -10 -9 -9 -7 ------- Run | Yrd Mat Mat Min Zio Robot Analysis Total . | . . . . . Derelict Logs Recovered 3 | . . . . 3 Drone Launches . | . . . . . Drone Recoveries . | . . . . . Exploration | -11 -10 -9 -9 -7 ------------- Run | Yrd Mat Mat Min Zio Turns Passed 1960 | 319 254 82 29 1276 Spaces Moved 1633 | 106 228 149 50 1100 Core 112 | 17 . . . 95 Treads . | . . . . . Legs 182 | 89 93 . . . Wheels . | . . . . . Hover . | . . . . . Flight 1339 | . 135 149 50 1005 Fastest Speed 37 | 50 37 37 37 37 Average Speed 48 | 108 70 37 37 39 Slowest Speed 150 | 120 120 107 37 150 Overloaded Moves . | . . . . . Propulsion Burnouts . | . . . . . Robots Hopped . | . . . . . Cave-ins Triggered . | . . . . . Exploration Rate (%) 35 | 10 41 31 10 86 Regions Visited 4 Branch Regions 2 Pre-discovered Areas 1 | . . . . 1 Known Exits Taken . | . . . . . Unknown Exits Taken 4 | 1 1 1 1 . Scrap Searched 5 | . . . 1 4 Spaces Dug . | . . . . . Terrain Destroyed 73 | . . 29 34 10 Melee . | . . . . . Projectile . | . . . . . AOE 73 | . . 29 34 10 Terrain Rammed . | . . . . . Walls Destroyed . | . . . . . Machines Disabled . | . . . . . Actions | -11 -10 -9 -9 -7 --------- Run | Yrd Mat Mat Min Zio Total 2750 | 303 291 163 55 1938 Wait 1004 | 183 7 2 3 809 Move 1629 | 105 227 148 49 1100 Hop . | . . . . . Pick Up 34 | 7 16 1 1 9 Fast Attach . | . . . . . Attach 14 | 5 3 3 . 3 Detach 2 | . . 1 . 1 Swap 23 | . 14 3 . 6 Drop 19 | . 10 . . 9 Fire 22 | 3 13 3 2 1 Melee 2 | . . 2 . . Ram . | . . . . . Kick 1 | . 1 . . . Crush . | . . . . . Escape Stasis . | . . . . . Rewire . | . . . . . Trap . | . . . . . Miscellaneous . | . . . . . Route ------- -11/Scrapyard -10/Materials -9/Materials -9/Mines -7/Zion History --------- Turn | Location | Event 2 | -11/Scrapyard | Met Revision 17 74 | -11/Scrapyard | Discovered new exit (range 8) 320 | -11/Scrapyard | Entered Materials 321 | -10/Materials | Build established: Mutant 530 | -10/Materials | Discovered new exit (range 9) 574 | -10/Materials | Entered another Materials area 574 | -9/Materials | Evolved 2 slots: Utility x1, Weapon x1 627 | -9/Materials | Discovered new exit (range 17) 656 | -9/Materials | Entered Mines 672 | -9/Mines | A Derelict revealed a hidden shortcut to a safe place 685 | -9/Mines | Entered Zion 758 | -7/Zion | Found Prototype Special Weapon 759 | -7/Zion | Identified RU-N14's Throwing Claymores 791 | -7/Zion | Found CR-A16's Pointy Stick 923 | -7/Zion | Learned location of Data Miner (-6) 980 | -7/Zion | Imprinted 982 | -7/Zion | Declared Zion's savior 1812 | -7/Zion | Learned Factory emergency access door positions 1815 | -7/Zion | Learned Factory security intel 1829 | -7/Zion | Learned Factory garrison access intel 1836 | -7/Zion | Learned Factory machine intel 1860 | -7/Zion | Attacked by Zionites 1860 | -7/Zion | Spotted 3P-3KV(B) 1918 | -7/Zion | Core integrity fell below 50% 1928 | -7/Zion | Lost 6 parts (2p2n1u1w) 1961 | -7/Zion | Core integrity fell below 20% 1961 | -7/Zion | Destroyed by 1E-J9U(z) with Makeshift Axe Last Messages --------------- Machinery. KB-PCR(z) pulls a Mak. Sword out of the Twisted Machinery. Lgt. Nuclear Core destroyed. DT-0GV(z) emerges from the Twisted Machinery. DT-0GV(z) pulls a Mak. Spear out of the Twisted Machinery. E2-GXY(z) pulls a Mak. Shrapnel Gun out of the Twisted Machinery. 3I-3XG(z) pulls a Mak. Spear out of the Twisted Machinery. X5-S4R(z) pulls a Mak. Spear out of the Twisted Machinery. [Achievement: Hunted] AZ-VWZ(z) pulls a Mak. Spear out of the Twisted Machinery. 1E-J9U(z) pulls a Mak. Axe out of the Twisted Machinery. CR-A16's Pointy Stick severed. Critical hit (Impale). Map ----- +----------------------------------------------------+ | ???????????????????????####?##""" | | ????????????????????????????#"" | | ???????????????????????????###" | | ???????????????????????????#""" | | ???????????????????????????##"" | | ????????????????????????????#"" " | | ????????????????????????????##" "" | | ????????????????????????????#""""""" | | ????????????????????????????##""""## | | ?????????????????????????????##"###" | | ??????????????????????????????####"" | | ????????????????????????????###""##" | | ????????????????????????????#""""""" | | ??????????????????????????###""" " | | ??????????????????????????#""" "" | | ??????????????????????????#"" """ | | ??????????????????????????#"" """ | | ??????????????????????????#"" """ | | ???????????????????????#####" """ | | ?????????????????#######""""" """ | | ?????????????????#"#"""""""" | | ???###############""""""""" | | ???#"""""""""" #"#" "" | | ???#"""""""""" #""" | | ???#"" #""" "" | | ????"""""" @z ##"" """ "" | | ????"""""""zz z I """" "" | | ????""""""" "##" """ | | ?????"""""" z c ""#" """" | | ?????""""" ###z "#"" """""" | | ?????" #"#" "##"" """ " | | ????"""""""""" ##"" "#""" "" | | ????"""""""""" #""" """""" | | ????############""" "##""""" | | ???????????#####""# "####"""" | | ??????????##"""#### #"#?##""" | | ??????????#" ###??##"" | | ??????????#" #?????##" | | ??????????#" #??????#" | | ??????????## #### #?????""" | | ???????????# #??######????#"" " | | ??????###### ######???????#"" """ | | ????"""""""" """"""""?????##" "#" | | ????"######" "######"??????"" ""# | | ????"# " " " " #"?????#"" ""? | | ????"# #"?????#"" ""? | | ??"""#" #"""????"" ? | | ??"""#" #"""#???"" ?? | | ??"""# # #????"""?"" | | ?# # " "" #????"""??" | +----------------------------------------------------+ Best States ------------- Heat Dissipation 49 Energy Generation 14 Energy Capacity 160 Matter Stores 300 Matter Capacity 300 Sight Range 18 Robot Scan Range 14 Terrain Scan Range 14 Terrain Scan Density 85 Evasion (%) 62 Item Schematics ----------------- None Robot Schematics ------------------ None Fabricated ------------ Nothing Alien Tech Used ----------------- None Achievements -------------- Hunted Robot Respite The One Use The Force Challenges ------------ None Game ------ Seed TerrainHardenedSword Manual? 0 Play Time 00:36:36 Cumulative 2.0 hours Start 2024.03.31 @ 12:46:04 End 2024.03.31 @ 19:17:04 Sessions 5 Manual Loads 0 Difficulty Rogue Special Mode None Game No. 2 Rogue 2 Adventurer 0 Explorer 0 Win Type - Total 0 Types 0/0/0/0/0/0/0/0/0 Lore% 4 Gallery% 7 Achievement% 7 Wizard Run 0 Options --------- Layout 1 ASCII 0 Keyboard 0 Movement Numpad Keybinds 0 Fullscreen 1 Font 32/SmallcapsGlow Map View 50x35 Zoom Use 0% Tactical HUD 0 Map Filters NONE Filters NONE Steam 1 RUN: a9c45c8d-143a-458d-9525-c672a5cda78d